[Event "Early-Titled-Tuesday-Blitz-May-14-2024"]
[Site "Chess.com"]
[Date "2024.05.14"]
[Round "3"]
[White "yaguigor"]
[Black "Alexander_Donchenko"]
[Result "0-1"]
[WhiteElo "2582"]
[BlackElo "2876"]
[TimeControl "180+1"]
[EndTime "8:28:04 PDT"]
[Termination "Alexander_Donchenko won by resignation"]

1. e4 {[%clk 0:03:00.9]} 1... e5 {[%clk 0:03:00.3]} 2. Nf3 {[%clk 0:02:59.9]}
2... Nc6 {[%clk 0:03:00.9]} 3. Bb5 {[%clk 0:02:58.6]} 3... a6 {[%clk 0:03:01.2]}
4. Ba4 {[%clk 0:02:55.9]} 4... Nf6 {[%clk 0:03:01.6]} 5. O-O {[%clk 0:02:55]}
5... Be7 {[%clk 0:03:01.9]} 6. d3 {[%clk 0:02:52]} 6... b5 {[%clk 0:03:01.3]} 7.
Bb3 {[%clk 0:02:51.5]} 7... O-O {[%clk 0:03:01.6]} 8. Nc3 {[%clk 0:02:48.9]}
8... d6 {[%clk 0:03:00.4]} 9. a3 {[%clk 0:02:48.5]} 9... h6 {[%clk 0:02:57.2]}
10. h3 {[%clk 0:02:45.6]} 10... Be6 {[%clk 0:02:55.1]} 11. Nd5 {[%clk 0:02:44]}
11... Nb8 {[%clk 0:02:51.7]} 12. Nxe7+ {[%clk 0:02:31.2]} 12... Qxe7 {[%clk
0:02:51.7]} 13. Bxe6 {[%clk 0:02:31.2]} 13... Qxe6 {[%clk 0:02:50.7]} 14. a4
{[%clk 0:02:29.5]} 14... Nbd7 {[%clk 0:02:49.5]} 15. Re1 {[%clk 0:02:24.2]}
15... c5 {[%clk 0:02:49.1]} 16. b3 {[%clk 0:02:19.9]} 16... Nb6 {[%clk 0:02:46]}
17. a5 {[%clk 0:02:13.1]} 17... Nbd7 {[%clk 0:02:44.5]} 18. c3 {[%clk
0:02:11.2]} 18... Rac8 {[%clk 0:02:42.4]} 19. Bb2 {[%clk 0:02:08.4]} 19... Rfd8
{[%clk 0:02:41.1]} 20. d4 {[%clk 0:02:06]} 20... Nf8 {[%clk 0:02:31.7]} 21. d5
{[%clk 0:01:53.5]} 21... Qd7 {[%clk 0:02:31.7]} 22. c4 {[%clk 0:01:54.1]} 22...
Rb8 {[%clk 0:02:29.5]} 23. Bc1 {[%clk 0:01:51.1]} 23... Ng6 {[%clk 0:02:28.4]}
24. Nh2 {[%clk 0:01:48.7]} 24... bxc4 {[%clk 0:02:26.4]} 25. bxc4 {[%clk
0:01:48]} 25... Rb4 {[%clk 0:02:27.1]} 26. Qd3 {[%clk 0:01:46.2]} 26... Rdb8
{[%clk 0:02:26.9]} 27. Ra3 {[%clk 0:01:40.3]} 27... Nh5 {[%clk 0:02:23.5]} 28.
Bd2 {[%clk 0:01:35.8]} 28... Ra4 {[%clk 0:02:16.8]} 29. Rxa4 {[%clk 0:01:30.2]}
29... Qxa4 {[%clk 0:02:17.7]} 30. g3 {[%clk 0:01:26.9]} 30... Nf6 {[%clk
0:02:16.3]} 31. Ng4 {[%clk 0:01:20.4]} 31... Nxg4 {[%clk 0:02:16]} 32. hxg4
{[%clk 0:01:20.5]} 32... Rb3 {[%clk 0:02:16.6]} 33. Qe2 {[%clk 0:01:18.5]} 33...
Rb2 {[%clk 0:02:14.9]} 34. Qd3 {[%clk 0:01:17.3]} 34... Qc2 {[%clk 0:02:13.1]}
35. Qxc2 {[%clk 0:01:12.8]} 35... Rxc2 {[%clk 0:02:14]} 36. Be3 {[%clk
0:01:05.5]} 36... Rxc4 {[%clk 0:02:13.9]} 37. f3 {[%clk 0:01:05.3]} 37... Rb4
{[%clk 0:02:11]} 38. Kf2 {[%clk 0:01:03.9]} 38... Kf8 {[%clk 0:02:07]} 39. Re2
{[%clk 0:01:02.6]} 39... Ke8 {[%clk 0:02:05.8]} 40. Rc2 {[%clk 0:01:02.4]} 40...
Ne7 {[%clk 0:02:01.1]} 41. g5 {[%clk 0:01:01.1]} 41... h5 {[%clk 0:01:59.4]} 42.
Bd2 {[%clk 0:00:58.6]} 42... Rb3 {[%clk 0:01:56.5]} 43. Bc3 {[%clk 0:00:56.5]}
43... g6 {[%clk 0:01:50.4]} 44. Ke2 {[%clk 0:00:55.9]} 44... Nc8 {[%clk
0:01:50]} 45. Kd3 {[%clk 0:00:55.3]} 45... Na7 {[%clk 0:01:50.5]} 46. Kc4 {[%clk
0:00:55.4]} 46... Rb1 {[%clk 0:01:50.6]} 47. Rb2 {[%clk 0:00:52.8]} 47... Rxb2
{[%clk 0:01:47.9]} 48. Bxb2 {[%clk 0:00:52.9]} 48... f6 {[%clk 0:01:45.4]} 49.
f4 {[%clk 0:00:46.8]} 49... exf4 {[%clk 0:01:43.5]} 50. gxf4 {[%clk 0:00:38.9]}
50... h4 {[%clk 0:01:43.9]} 0-1

[Event "Early-Titled-Tuesday-Blitz-May-14-2024"]
[Site "Chess.com"]
[Date "2024.05.14"]
[Round "3"]
[White "tjychess"]
[Black "KogotBobra17"]
[Result "1-0"]
[WhiteElo "2945"]
[BlackElo "2687"]
[TimeControl "180+1"]
[EndTime "8:28:10 PDT"]
[Termination "tjychess won by resignation"]

1. d4 {[%clk 0:03:00.9]} 1... d5 {[%clk 0:03:00.2]} 2. c4 {[%clk 0:03:00.8]}
2... e6 {[%clk 0:03:00.7]} 3. Nc3 {[%clk 0:03:00.5]} 3... c6 {[%clk 0:03:00.5]}
4. Nf3 {[%clk 0:02:55.6]} 4... Nf6 {[%clk 0:03:00.5]} 5. Bg5 {[%clk 0:02:55.3]}
5... h6 {[%clk 0:03:00.7]} 6. Bh4 {[%clk 0:02:54.9]} 6... Be7 {[%clk 0:03:00.4]}
7. e3 {[%clk 0:02:55]} 7... O-O {[%clk 0:02:50.4]} 8. Qc2 {[%clk 0:02:52.9]}
8... Ne4 {[%clk 0:02:46.7]} 9. Bxe7 {[%clk 0:02:43.6]} 9... Qxe7 {[%clk
0:02:45.6]} 10. Nxe4 {[%clk 0:02:08.2]} 10... dxe4 {[%clk 0:02:46.5]} 11. Nd2
{[%clk 0:02:04.4]} 11... f5 {[%clk 0:02:46]} 12. c5 {[%clk 0:01:57.9]} 12... b6
{[%clk 0:02:36.8]} 13. Rc1 {[%clk 0:01:47.7]} 13... Ba6 {[%clk 0:02:12.3]} 14.
Bxa6 {[%clk 0:01:38.9]} 14... Nxa6 {[%clk 0:02:13.2]} 15. a3 {[%clk 0:01:34.2]}
15... Rfd8 {[%clk 0:01:53.4]} 16. cxb6 {[%clk 0:01:15]} 16... axb6 {[%clk
0:01:54.3]} 17. Qxc6 {[%clk 0:01:13.1]} 17... e5 {[%clk 0:01:45.2]} 18. O-O
{[%clk 0:01:06.6]} 18... exd4 {[%clk 0:01:45.1]} 19. exd4 {[%clk 0:01:07.5]}
19... Rab8 {[%clk 0:01:08.9]} 20. Qc4+ {[%clk 0:01:05]} 20... Kh8 {[%clk
0:01:07.9]} 21. Qxa6 {[%clk 0:01:05.4]} 21... Rxd4 {[%clk 0:01:08.8]} 22. Rc8+
{[%clk 0:01:04]} 22... Rxc8 {[%clk 0:01:08.1]} 23. Qxc8+ {[%clk 0:01:04.9]}
23... Rd8 {[%clk 0:01:08.5]} 24. Qc3 {[%clk 0:01:04.1]} 24... Qg5 {[%clk
0:01:07]} 25. Nc4 {[%clk 0:01:00.8]} 25... Rc8 {[%clk 0:01:05.2]} 26. Qd4 {[%clk
0:00:56.7]} 26... b5 {[%clk 0:01:04.4]} 27. Nd6 {[%clk 0:00:56.2]} 27... Rc7
{[%clk 0:01:04.5]} 28. Nxb5 {[%clk 0:00:52.7]} 28... Rc2 {[%clk 0:01:05.2]} 29.
Nd6 {[%clk 0:00:44.3]} 29... Kh7 {[%clk 0:01:04.8]} 30. Qe5 {[%clk 0:00:43.1]}
30... e3 {[%clk 0:00:56.7]} 31. Qxe3 {[%clk 0:00:36.2]} 1-0

[Event "Early-Titled-Tuesday-Blitz-May-14-2024"]
[Site "Chess.com"]
[Date "2024.05.14"]
[Round "3"]
[White "Grossboss19"]
[Black "DonkyDonkyDonkey"]
[Result "0-1"]
[WhiteElo "2633"]
[BlackElo "2912"]
[TimeControl "180+1"]
[EndTime "8:28:10 PDT"]
[Termination "DonkyDonkyDonkey won by resignation"]

1. c4 {[%clk 0:02:54.1]} 1... e5 {[%clk 0:02:58.8]} 2. Nf3 {[%clk 0:02:54.2]}
2... Nc6 {[%clk 0:02:58]} 3. Nc3 {[%clk 0:02:54.7]} 3... g6 {[%clk 0:02:57.9]}
4. g3 {[%clk 0:02:54.6]} 4... Bg7 {[%clk 0:02:57.9]} 5. Bg2 {[%clk 0:02:54.8]}
5... Nge7 {[%clk 0:02:58.3]} 6. O-O {[%clk 0:02:54.6]} 6... O-O {[%clk
0:02:59.1]} 7. Ne1 {[%clk 0:02:53.1]} 7... d6 {[%clk 0:02:57.7]} 8. Nc2 {[%clk
0:02:52.6]} 8... Be6 {[%clk 0:02:57.9]} 9. Ne3 {[%clk 0:02:52.7]} 9... f5 {[%clk
0:02:54.5]} 10. Ned5 {[%clk 0:02:51.9]} 10... Bf7 {[%clk 0:02:51.2]} 11. d3
{[%clk 0:02:44]} 11... Nxd5 {[%clk 0:02:51.3]} 12. Nxd5 {[%clk 0:02:37.4]} 12...
Ne7 {[%clk 0:02:49.6]} 13. Bg5 {[%clk 0:02:12]} 13... Bxd5 {[%clk 0:02:48.2]}
14. Bxd5+ {[%clk 0:02:12.6]} 14... Kh8 {[%clk 0:02:48.7]} 15. Bxb7 {[%clk
0:02:02]} 15... Rb8 {[%clk 0:02:48.8]} 16. Bf3 {[%clk 0:01:56.6]} 16... h6
{[%clk 0:02:45.9]} 17. Bxe7 {[%clk 0:01:53.7]} 17... Qxe7 {[%clk 0:02:46.8]} 18.
Rb1 {[%clk 0:01:54.1]} 18... g5 {[%clk 0:02:27.6]} 19. Bg2 {[%clk 0:01:44.5]}
19... g4 {[%clk 0:02:26.2]} 20. e3 {[%clk 0:01:38.8]} 20... Qg5 {[%clk
0:02:25.5]} 21. f4 {[%clk 0:01:28.5]} 21... exf4 {[%clk 0:02:16.7]} 22. exf4
{[%clk 0:01:26.7]} 22... Bd4+ {[%clk 0:02:11.8]} 23. Kh1 {[%clk 0:01:26.3]}
23... Qf6 {[%clk 0:02:12.6]} 24. Re1 {[%clk 0:01:21.9]} 24... Rfe8 {[%clk
0:01:50.7]} 25. Qa4 {[%clk 0:01:16.2]} 25... Re7 {[%clk 0:01:40.5]} 26. b4
{[%clk 0:01:03.1]} 26... h5 {[%clk 0:01:35.9]} 27. Qa5 {[%clk 0:00:45.9]} 27...
Rbe8 {[%clk 0:01:27]} 28. Rxe7 {[%clk 0:00:40.1]} 28... Rxe7 {[%clk 0:01:25]}
29. Qa4 {[%clk 0:00:20.4]} 29... h4 {[%clk 0:01:24.5]} 30. Bd5 {[%clk
0:00:17.5]} 30... hxg3 {[%clk 0:01:17.5]} 31. Qc2 {[%clk 0:00:17.5]} 31... Rh7
{[%clk 0:01:14.6]} 32. Re1 {[%clk 0:00:13.5]} 32... Rxh2+ {[%clk 0:01:14.7]} 33.
Qxh2+ {[%clk 0:00:14.1]} 33... gxh2 {[%clk 0:01:15.6]} 34. Re8+ {[%clk
0:00:14.4]} 34... Kg7 {[%clk 0:01:16.1]} 35. Rg8+ {[%clk 0:00:15]} 35... Kh7
{[%clk 0:01:16.6]} 0-1

[Event "Early-Titled-Tuesday-Blitz-May-14-2024"]
[Site "Chess.com"]
[Date "2024.05.14"]
[Round "3"]
[White "capatl"]
[Black "Raskolnikov6"]
[Result "0-1"]
[WhiteElo "2621"]
[BlackElo "2443"]
[TimeControl "180+1"]
[EndTime "8:28:17 PDT"]
[Termination "Raskolnikov6 won on time"]

1. c4 {[%clk 0:03:00.9]} 1... Nf6 {[%clk 0:02:56.9]} 2. Nc3 {[%clk 0:03:00.6]}
2... c6 {[%clk 0:02:50.4]} 3. Nf3 {[%clk 0:02:57.8]} 3... d5 {[%clk 0:02:48.6]}
4. e3 {[%clk 0:02:58]} 4... g6 {[%clk 0:02:46.3]} 5. b3 {[%clk 0:02:57.7]} 5...
Bg7 {[%clk 0:02:46.5]} 6. Bb2 {[%clk 0:02:58.1]} 6... O-O {[%clk 0:02:47]} 7.
Rc1 {[%clk 0:02:48.6]} 7... Ne4 {[%clk 0:02:42.9]} 8. Qc2 {[%clk 0:02:22.4]}
8... Bf5 {[%clk 0:02:30.4]} 9. Bd3 {[%clk 0:01:56.1]} 9... Na6 {[%clk
0:02:17.9]} 10. a3 {[%clk 0:00:35.9]} 10... Nac5 {[%clk 0:02:16]} 11. Nd4 {[%clk
0:00:18.2]} 11... Bxd4 {[%clk 0:02:07.9]} 12. Bxe4 {[%clk 0:00:13.4]} 12... Bxc3
{[%clk 0:01:53.9]} 13. Qxc3 {[%clk 0:00:11.9]} 13... e5 {[%clk 0:01:32]} 14.
Bxf5 {[%clk 0:00:11.4]} 14... d4 {[%clk 0:01:11.1]} 15. exd4 {[%clk 0:00:12.3]}
15... exd4 {[%clk 0:01:11.1]} 16. Qg3 {[%clk 0:00:12.2]} 16... Qe7+ {[%clk
0:00:56]} 17. Kf1 {[%clk 0:00:12.4]} 17... Rfe8 {[%clk 0:00:56.1]} 18. Bd3
{[%clk 0:00:11.2]} 18... Nxb3 {[%clk 0:00:54.1]} 19. Rd1 {[%clk 0:00:02.6]}
19... Nxd2+ {[%clk 0:00:53.5]} 20. Kg1 {[%clk 0:00:02.7]} 20... Qe1+ {[%clk
0:00:51.8]} 0-1

[Event "Early-Titled-Tuesday-Blitz-May-14-2024"]
[Site "Chess.com"]
[Date "2024.05.14"]
[Round "3"]
[White "NinoMaisuradze"]
[Black "ivana_999"]
[Result "1-0"]
[WhiteElo "2344"]
[BlackElo "1849"]
[TimeControl "180+1"]
[EndTime "8:28:21 PDT"]
[Termination "NinoMaisuradze won by resignation"]

1. c4 {[%clk 0:03:00.1]} 1... e5 {[%clk 0:02:59.7]} 2. b3 {[%clk 0:02:59.4]}
2... Nf6 {[%clk 0:02:59]} 3. Bb2 {[%clk 0:02:59.9]} 3... Nc6 {[%clk 0:02:56.2]}
4. Nf3 {[%clk 0:02:59]} 4... d6 {[%clk 0:02:50]} 5. d4 {[%clk 0:02:58.3]} 5...
exd4 {[%clk 0:02:47.6]} 6. Nxd4 {[%clk 0:02:58.2]} 6... Bd7 {[%clk 0:02:47.6]}
7. Nc3 {[%clk 0:02:56.3]} 7... Be7 {[%clk 0:02:40.5]} 8. e3 {[%clk 0:02:55.5]}
8... O-O {[%clk 0:02:40.5]} 9. Be2 {[%clk 0:02:52.2]} 9... d5 {[%clk 0:02:18.3]}
10. Nxd5 {[%clk 0:02:44.5]} 10... Nxd5 {[%clk 0:02:13.7]} 11. cxd5 {[%clk
0:02:45.4]} 11... Nxd4 {[%clk 0:02:09.6]} 12. Qxd4 {[%clk 0:02:31.9]} 12... Bf6
{[%clk 0:02:09.4]} 13. Qd2 {[%clk 0:02:32.2]} 13... Bxb2 {[%clk 0:02:07.2]} 14.
Qxb2 {[%clk 0:02:33.1]} 14... Qg5 {[%clk 0:02:07.2]} 15. Bf3 {[%clk 0:02:31.4]}
15... Bb5 {[%clk 0:01:36.9]} 16. a4 {[%clk 0:02:30]} 16... Bd7 {[%clk
0:01:17.7]} 17. h4 {[%clk 0:02:26.9]} 17... Qh6 {[%clk 0:01:10.1]} 18. Rc1
{[%clk 0:02:16.8]} 18... Rac8 {[%clk 0:01:09.6]} 19. Qe5 {[%clk 0:02:10.7]}
19... Qd6 {[%clk 0:01:00.2]} 20. Qxd6 {[%clk 0:02:08.5]} 20... cxd6 {[%clk
0:01:01.1]} 21. Kd2 {[%clk 0:02:08]} 21... b6 {[%clk 0:00:49.8]} 22. h5 {[%clk
0:02:05.7]} 22... h6 {[%clk 0:00:48.2]} 23. g4 {[%clk 0:02:04.5]} 23... f6
{[%clk 0:00:47.2]} 24. Be2 {[%clk 0:02:01.9]} 24... Rc5 {[%clk 0:00:44.8]} 25.
e4 {[%clk 0:01:58.4]} 25... Re8 {[%clk 0:00:42.9]} 26. f3 {[%clk 0:01:57.6]}
26... Rec8 {[%clk 0:00:42.1]} 27. Rxc5 {[%clk 0:01:56.1]} 27... Rxc5 {[%clk
0:00:41.2]} 28. Rc1 {[%clk 0:01:56.6]} 28... Kf7 {[%clk 0:00:34.7]} 29. Rxc5
{[%clk 0:01:56]} 29... bxc5 {[%clk 0:00:35.6]} 30. Kc3 {[%clk 0:01:55.2]} 30...
g6 {[%clk 0:00:24.8]} 31. Bb5 {[%clk 0:01:37.9]} 31... Bxb5 {[%clk 0:00:14.3]}
32. axb5 {[%clk 0:01:37.6]} 32... gxh5 {[%clk 0:00:14.2]} 33. gxh5 {[%clk
0:01:37.3]} 33... Ke7 {[%clk 0:00:14.6]} 34. b4 {[%clk 0:01:32.4]} 34... cxb4+
{[%clk 0:00:14.5]} 35. Kxb4 {[%clk 0:01:32.6]} 35... Kd7 {[%clk 0:00:14.6]} 36.
Ka5 {[%clk 0:01:31.2]} 36... Kc7 {[%clk 0:00:14.7]} 37. Ka6 {[%clk 0:01:31.4]}
37... Kb8 {[%clk 0:00:15.4]} 38. b6 {[%clk 0:01:31.1]} 38... axb6 {[%clk
0:00:16]} 39. Kxb6 {[%clk 0:01:32]} 39... Kc8 {[%clk 0:00:16.3]} 40. Kc6 {[%clk
0:01:32.9]} 40... Kd8 {[%clk 0:00:17.1]} 41. Kxd6 {[%clk 0:01:33.6]} 41... Ke8
{[%clk 0:00:18]} 42. Ke6 {[%clk 0:01:34]} 1-0

[Event "Early-Titled-Tuesday-Blitz-May-14-2024"]
[Site "Chess.com"]
[Date "2024.05.14"]
[Round "3"]
[White "Lady_Nika"]
[Black "crazy_but_lazy"]
[Result "0-1"]
[WhiteElo "2487"]
[BlackElo "2679"]
[TimeControl "180+1"]
[EndTime "8:28:25 PDT"]
[Termination "crazy_but_lazy won by checkmate"]

1. d4 {[%clk 0:03:00.9]} 1... d5 {[%clk 0:03:00]} 2. e3 {[%clk 0:03:00.7]} 2...
Nf6 {[%clk 0:02:59.8]} 3. f4 {[%clk 0:03:00.9]} 3... g6 {[%clk 0:02:53.1]} 4.
Nf3 {[%clk 0:03:00.4]} 4... Bg7 {[%clk 0:02:53.7]} 5. c3 {[%clk 0:03:01.3]} 5...
O-O {[%clk 0:02:54.1]} 6. Bd3 {[%clk 0:03:02.2]} 6... c5 {[%clk 0:02:54.9]} 7.
O-O {[%clk 0:03:02.5]} 7... Nbd7 {[%clk 0:02:54.2]} 8. Ne5 {[%clk 0:03:02]} 8...
Ne4 {[%clk 0:02:53.6]} 9. Nd2 {[%clk 0:03:01.9]} 9... Ndf6 {[%clk 0:02:53.7]}
10. Nxe4 {[%clk 0:03:01.7]} 10... Nxe4 {[%clk 0:02:52.3]} 11. Bd2 {[%clk
0:03:02]} 11... b6 {[%clk 0:02:37.2]} 12. Be1 {[%clk 0:02:57.7]} 12... Nd6
{[%clk 0:02:26.3]} 13. Bh4 {[%clk 0:02:55.7]} 13... Qc7 {[%clk 0:02:25.7]} 14.
Qe2 {[%clk 0:02:46.8]} 14... Bf5 {[%clk 0:02:20.5]} 15. g4 {[%clk 0:02:41]}
15... Bxd3 {[%clk 0:02:17.8]} 16. Nxd3 {[%clk 0:02:39.5]} 16... Ne4 {[%clk
0:02:06.6]} 17. Kh1 {[%clk 0:02:27.7]} 17... c4 {[%clk 0:01:48.3]} 18. Nf2
{[%clk 0:02:27.5]} 18... Nd6 {[%clk 0:01:36.8]} 19. e4 {[%clk 0:02:19.8]} 19...
dxe4 {[%clk 0:01:28.8]} 20. Nxe4 {[%clk 0:01:22.5]} 20... Qb7 {[%clk 0:01:21.5]}
21. Rfe1 {[%clk 0:01:19.4]} 21... f5 {[%clk 0:01:17.5]} 22. Bxe7 {[%clk
0:00:52.3]} 22... Qxe7 {[%clk 0:01:08.6]} 23. Nxd6 {[%clk 0:00:51.8]} 23... Qxd6
{[%clk 0:01:09.5]} 24. Qxc4+ {[%clk 0:00:51.9]} 24... Kh8 {[%clk 0:01:07.8]} 25.
gxf5 {[%clk 0:00:42.5]} 25... Qxf4 {[%clk 0:01:03.6]} 26. fxg6 {[%clk
0:00:31.2]} 26... Qf3+ {[%clk 0:01:00.5]} 27. Kg1 {[%clk 0:00:31.2]} 27... Rf4
{[%clk 0:00:54]} 28. h3 {[%clk 0:00:14.3]} 28... Qg3+ {[%clk 0:00:54]} 29. Kh1
{[%clk 0:00:14.1]} 29... Qxh3+ {[%clk 0:00:54.9]} 30. Kg1 {[%clk 0:00:14.5]}
30... Qg3+ {[%clk 0:00:55]} 31. Kh1 {[%clk 0:00:14.8]} 31... Rh4# {[%clk
0:00:55.6]} 0-1

[Event "Early-Titled-Tuesday-Blitz-May-14-2024"]
[Site "Chess.com"]
[Date "2024.05.14"]
[Round "3"]
[White "RuperezA"]
[Black "SaiHanThiha"]
[Result "1-0"]
[WhiteElo "2664"]
[BlackElo "2454"]
[TimeControl "180+1"]
[EndTime "8:28:25 PDT"]
[Termination "RuperezA won by checkmate"]

1. e4 {[%clk 0:03:00.9]} 1... c5 {[%clk 0:02:58.1]} 2. Nf3 {[%clk 0:02:59.2]}
2... d6 {[%clk 0:02:57.3]} 3. Bb5+ {[%clk 0:02:56.2]} 3... Nc6 {[%clk
0:02:55.2]} 4. O-O {[%clk 0:02:55.4]} 4... Bd7 {[%clk 0:02:53.3]} 5. c3 {[%clk
0:02:55.7]} 5... Nf6 {[%clk 0:02:33.7]} 6. Re1 {[%clk 0:02:55]} 6... a6 {[%clk
0:02:33.6]} 7. Bxc6 {[%clk 0:02:55.2]} 7... Bxc6 {[%clk 0:02:32.1]} 8. d4 {[%clk
0:02:55.9]} 8... Bxe4 {[%clk 0:02:00.8]} 9. Bg5 {[%clk 0:02:54.2]} 9... Bd5
{[%clk 0:01:44.8]} 10. c4 {[%clk 0:02:52.1]} 10... Bxf3 {[%clk 0:01:05.6]} 11.
Qxf3 {[%clk 0:02:53]} 11... cxd4 {[%clk 0:01:06.4]} 12. Bxf6 {[%clk 0:02:52.3]}
12... gxf6 {[%clk 0:01:07.1]} 13. Qxf6 {[%clk 0:02:53.2]} 13... Rg8 {[%clk
0:01:06.7]} 14. Qxd4 {[%clk 0:02:54.1]} 14... Bg7 {[%clk 0:01:04]} 15. Qd2
{[%clk 0:02:54.2]} 15... Rc8 {[%clk 0:00:56.1]} 16. Na3 {[%clk 0:02:46.9]} 16...
Qb6 {[%clk 0:00:52.3]} 17. Rab1 {[%clk 0:02:45.1]} 17... Qd4 {[%clk 0:00:31.2]}
18. Qe2 {[%clk 0:02:40.5]} 18... Bf6 {[%clk 0:00:24.2]} 19. b3 {[%clk
0:02:36.4]} 19... Qg4 {[%clk 0:00:18.5]} 20. Qxg4 {[%clk 0:02:34.4]} 20... Rxg4
{[%clk 0:00:18]} 21. Nc2 {[%clk 0:02:35.3]} 21... b5 {[%clk 0:00:11.7]} 22. Ne3
{[%clk 0:02:35.9]} 22... Rd4 {[%clk 0:00:11.4]} 23. Nd5 {[%clk 0:02:26.7]} 23...
Kf8 {[%clk 0:00:05.7]} 24. Nb6 {[%clk 0:02:21.1]} 24... Rc6 {[%clk 0:00:02.2]}
25. Nd7+ {[%clk 0:02:17.1]} 25... Kg7 {[%clk 0:00:03.1]} 26. Nxf6 {[%clk
0:02:18]} 26... Kxf6 {[%clk 0:00:03.2]} 27. cxb5 {[%clk 0:02:15.8]} 27... axb5
{[%clk 0:00:04.1]} 28. Re3 {[%clk 0:02:15.2]} 28... Rc2 {[%clk 0:00:04]} 29. a3
{[%clk 0:02:11.7]} 29... Rdd2 {[%clk 0:00:03.4]} 30. Rf3+ {[%clk 0:02:11.8]}
30... Kg7 {[%clk 0:00:03.8]} 31. Re1 {[%clk 0:02:10]} 31... Re2 {[%clk
0:00:03.6]} 32. Rd1 {[%clk 0:02:05.9]} 32... Rcd2 {[%clk 0:00:03.5]} 33. Rc1
{[%clk 0:02:05.4]} 33... Rc2 {[%clk 0:00:03.9]} 34. Rd1 {[%clk 0:01:50.5]} 34...
Ra2 {[%clk 0:00:04.7]} 35. h4 {[%clk 0:01:44.2]} 35... Red2 {[%clk 0:00:05]} 36.
Re1 {[%clk 0:01:43.8]} 36... Rxa3 {[%clk 0:00:05]} 37. Rxe7 {[%clk 0:01:43.6]}
37... Rd1+ {[%clk 0:00:03.6]} 38. Kh2 {[%clk 0:01:43.7]} 38... Kg6 {[%clk
0:00:03.5]} 39. Rexf7 {[%clk 0:01:43.5]} 39... Rd5 {[%clk 0:00:01.6]} 40. R3f6+
{[%clk 0:01:43]} 40... Kh5 {[%clk 0:00:02.5]} 41. Rxh7+ {[%clk 0:01:43.7]} 41...
Kg4 {[%clk 0:00:01.6]} 42. f3# {[%clk 0:01:44.5]} 1-0

[Event "Early-Titled-Tuesday-Blitz-May-14-2024"]
[Site "Chess.com"]
[Date "2024.05.14"]
[Round "3"]
[White "Byniolus"]
[Black "ChessSG1"]
[Result "1-0"]
[WhiteElo "2833"]
[BlackElo "2483"]
[TimeControl "180+1"]
[EndTime "8:28:30 PDT"]
[Termination "Byniolus won by resignation"]

1. d4 {[%clk 0:03:00.9]} 1... Nf6 {[%clk 0:02:57.9]} 2. Nf3 {[%clk 0:03:00.6]}
2... c5 {[%clk 0:02:57.3]} 3. c3 {[%clk 0:03:00.6]} 3... g6 {[%clk 0:02:56.4]}
4. Bf4 {[%clk 0:03:00.5]} 4... cxd4 {[%clk 0:02:55.2]} 5. cxd4 {[%clk
0:03:00.7]} 5... Bg7 {[%clk 0:02:55.8]} 6. Nc3 {[%clk 0:03:01.3]} 6... d6 {[%clk
0:02:56]} 7. e3 {[%clk 0:03:01.9]} 7... O-O {[%clk 0:02:50]} 8. Be2 {[%clk
0:03:02]} 8... Nc6 {[%clk 0:02:49.9]} 9. O-O {[%clk 0:03:01.2]} 9... Nh5 {[%clk
0:02:49.1]} 10. Bg5 {[%clk 0:03:01]} 10... h6 {[%clk 0:02:46.9]} 11. Bh4 {[%clk
0:02:59.8]} 11... g5 {[%clk 0:02:36.9]} 12. Bg3 {[%clk 0:02:57.4]} 12... Nxg3
{[%clk 0:02:36.6]} 13. hxg3 {[%clk 0:02:58.3]} 13... Bf5 {[%clk 0:02:34.4]} 14.
Bd3 {[%clk 0:02:52.9]} 14... Bxd3 {[%clk 0:02:15.8]} 15. Qxd3 {[%clk 0:02:53.8]}
15... e6 {[%clk 0:02:16.1]} 16. a3 {[%clk 0:02:41.6]} 16... Rc8 {[%clk
0:02:15.5]} 17. d5 {[%clk 0:02:37]} 17... Ne5 {[%clk 0:02:12]} 18. Nxe5 {[%clk
0:02:35.3]} 18... Bxe5 {[%clk 0:02:12.9]} 19. dxe6 {[%clk 0:02:33.4]} 19... Bxc3
{[%clk 0:01:49.1]} 20. bxc3 {[%clk 0:02:20.9]} 20... Qf6 {[%clk 0:01:47.9]} 21.
exf7+ {[%clk 0:02:19.2]} 21... Rxf7 {[%clk 0:01:48.8]} 22. Rac1 {[%clk
0:02:13.7]} 22... Qe5 {[%clk 0:01:43.1]} 23. Rfd1 {[%clk 0:02:07.7]} 23... Rcf8
{[%clk 0:01:16]} 24. Rc2 {[%clk 0:01:53.2]} 24... Kg7 {[%clk 0:00:33]} 25. Qxd6
{[%clk 0:01:39.5]} 25... Qf5 {[%clk 0:00:30.5]} 26. Qd4+ {[%clk 0:01:34.1]}
26... Rf6 {[%clk 0:00:22.9]} 27. e4 {[%clk 0:01:32]} 27... Qg4 {[%clk 0:00:20]}
28. e5 {[%clk 0:01:26.9]} 28... Qxd4 {[%clk 0:00:08]} 29. cxd4 {[%clk
0:01:27.8]} 29... Ra6 {[%clk 0:00:08.2]} 30. d5 {[%clk 0:01:22.6]} 30... Rxa3
{[%clk 0:00:04.8]} 31. Rc7+ {[%clk 0:01:19.1]} 31... Kg6 {[%clk 0:00:04.9]} 32.
e6 {[%clk 0:01:11.6]} 32... Ra2 {[%clk 0:00:05.5]} 33. e7 {[%clk 0:01:05]} 33...
Re8 {[%clk 0:00:05.9]} 34. d6 {[%clk 0:01:04]} 1-0